lending/lending_fUSD_20251106
["ID","MTS","AMOUNT","RATE_DAILY","PERIOD"]
[393276564,1762420238454,-500.0,0.00016373,2]
[393276565,1762420238464,-500.0,0.00016373,2]
[393276566,1762420238473,-500.0,0.00016373,2]
[393276567,1762420238483,-500.0,0.00016373,2]
[393276568,1762420238493,-500.0,0.00016373,2]
[393276569,1762420238502,-449.38309733,0.00016373,2]
[393276571,1762420238511,-500.0,0.00016373,2]
[393276572,1762420238520,-500.0,0.00016373,2]
[393276573,1762420238529,-500.0,0.00016373,2]
[393276574,1762420238538,-263.71974406,0.00016373,2]
[393276575,1762420238550,-236.28025594,0.00016373,2]
[393276577,1762420238559,-500.0,0.00016373,2]
[393276578,1762420238568,-500.0,0.00016373,2]
[393276579,1762420238578,-157.47745667,0.00016373,2]
[393276580,1762420238587,-217.18810693,0.00016373,2]
[393276582,1762420238599,-282.81189307,0.00016373,2]
[393276584,1762420238608,-500.0,0.00016373,2]
[393276585,1762420238617,-504.69553816,0.00016373,2]
[393276586,1762420238626,-500.0,0.00016373,2]
[393276587,1762420238636,-526.17457653,0.00016373,2]
[393276588,1762420238645,-500.0,0.00016373,2]
[393276589,1762420238654,-5000.0,0.00016378,2]
[393276590,1762420238663,-500.0,0.00016389,2]
[393276591,1762420238672,-172.62935668,0.00016389,2]
[393276592,1762420238682,-210.70804211,0.00016389,2]
[393276593,1762420238691,-500.0,0.0001639,2]
[393276594,1762420238700,-150.0,0.0001639,2]
[393276595,1762420238709,-574.0,0.0001639,2]
[393276596,1762420238718,-150.0,0.0001639,2]
[393276597,1762420238727,-500.0,0.0001639,2]
[393276598,1762420238737,-150.0,0.0001639,2]
[393276599,1762420238746,-150.0,0.0001639,2]
[393276600,1762420238755,-150.0,0.0001639,2]
[393276601,1762420238765,-500.0,0.0001639,2]
[393276602,1762420238774,-150.0,0.0001639,2]
[393276603,1762420238784,-150.0,0.0001639,2]
[393276604,1762420238793,-500.0,0.0001639,2]
[393276605,1762420238803,-150.0,0.0001639,2]
[393276606,1762420238813,-500.0,0.0001639,2]
[393276607,1762420238822,-150.0,0.0001639,2]
[393276608,1762420238832,-500.0,0.0001639,2]
[393276609,1762420238845,-500.0,0.0001639,2]
[393276610,1762420238856,-500.0,0.00016399,2]
[393276611,1762420238865,-687.09,0.00016399,2]
[393276612,1762420238874,-500.0,0.00016399,2]
[393276613,1762420238885,-847.3,0.00016399,2]
[393276614,1762420238895,-602.23460936,0.00016399,2]
[393276615,1762420238905,-500.0,0.00016399,2]
[393276616,1762420238915,-522.56,0.00016399,2]
[393276617,1762420238925,-522.56,0.00016399,2]
[393276618,1762420238935,-500.0,0.00016399,2]
[393276619,1762420238944,-420000.0,0.000164,2]
[393276620,1762420238964,-1000.0,0.000164,2]
[393276621,1762420238976,-16045.46,0.00016407,2]
[393276622,1762420238986,-150.0,0.00016438,2]
[393276623,1762420238995,-500.0,0.00016438,2]
[393276624,1762420239005,-500.0,0.00016438,2]
[393276625,1762420239014,-500.0,0.00016438,2]
[393276626,1762420239023,-510.22596157,0.00016438,2]
[393276627,1762420239033,-500.0,0.00016438,2]
[393276628,1762420239043,-163.35,0.0001644,2]
[393276629,1762420239052,-8922.51807909,0.00016478,2]
[393276630,1762420239062,-362.22099006,0.00016478,2]
[393276631,1762420239072,-16358.79452762,0.00016478,2]
[393276632,1762420239082,-2023.47,0.00016499,2]
[393276633,1762420239092,-500.0,0.00016527,2]
[393276634,1762420239101,-150.0,0.00016527,2]
[393276635,1762420239297,-574.0,0.00016527,2]
[393276636,1762420239308,-150.0,0.00016527,2]
[393276637,1762420239319,-500.0,0.00016527,2]
[393276638,1762420239330,-150.0,0.00016527,2]
[393276639,1762420239341,-154.15552868,0.00016527,2]
[393276640,1762420239353,-500.0,0.00016527,2]
[393276641,1762420239364,-150.0,0.00016527,2]
[393276642,1762420239375,-500.0,0.00016527,2]
[393276643,1762420239385,-500.0,0.00016527,2]
[393276644,1762420239396,-500.0,0.00016527,2]
[393276645,1762420239406,-500.0,0.00016527,2]
[393276646,1762420239415,-552.8965822,0.00016529,2]
[393276647,1762420239425,-681.67,0.00016564,2]
[393276648,1762420239436,-150.0,0.00016575,2]
[393276649,1762420239445,-8922.51807909,0.00016656,2]
[393276650,1762420239455,-362.22099006,0.00016656,2]
[393276651,1762420239465,-16358.79452762,0.00016656,2]
[393276652,1762420239475,-500.0,0.00016656,2]
[393276653,1762420239485,-500.0,0.00016656,2]
[393276654,1762420239496,-500.0,0.00016656,2]
[393276655,1762420239505,-150.0,0.00016656,2]
[393276656,1762420239515,-500.0,0.00016656,2]
[393276657,1762420239525,-500.0,0.00016656,2]
[393276658,1762420239534,-500.0,0.00016656,2]
[393276659,1762420239543,-500.0,0.00016656,2]
[393276660,1762420239552,-408.3599179,0.00016656,2]
[393276661,1762420239562,-500.0,0.00016656,2]
[393276662,1762420239572,-300.0,0.00016656,2]
[393276663,1762420239582,-500.0,0.00016664,2]
[393276664,1762420239596,-200.0,0.00016664,2]
[393276665,1762420239606,-574.0,0.00016664,2]
[393276666,1762420239615,-150.0,0.00016664,2]
[393276667,1762420239624,-500.0,0.00016664,2]
[393276668,1762420239632,-150.0,0.00016664,2]
[393276669,1762420239642,-392.08320953,0.00016664,2]
[393276670,1762420239651,-213.05879372,0.00016664,2]
[393276671,1762420239660,-500.0,0.00016664,2]
[393276672,1762420239671,-506.64145389,0.00016664,2]
[393276673,1762420239680,-500.0,0.00016664,2]
[393276674,1762420239690,-500.0,0.00016664,2]
[393276675,1762420239700,-166.66,0.00016683,2]
[393276676,1762420239709,-180.85,0.00016712,2]
[393276677,1762420239719,-200.0,0.00016744,2]
[393276678,1762420239728,-200.0,0.00016744,2]
[393276679,1762420239737,-201.07254976,0.00016744,2]
[393276680,1762420239746,-300.0,0.00016744,2]
[393276681,1762420239755,-195.0,0.00016755,2]
[393276682,1762420239764,-195.0,0.00016755,2]
[393276683,1762420239774,-300.0,0.00016755,2]
[393276684,1762420239783,-300.0,0.00016755,2]
[393276685,1762420239792,-300.0,0.00016755,2]
[393276686,1762420239801,-300.0,0.00016755,2]
[393276687,1762420239811,-323.34285068,0.00016755,2]
[393276688,1762420239820,-2500.0,0.00016755,2]
[393276689,1762420239829,-250.0,0.00016755,2]
[393276690,1762420239842,-195.0,0.00016755,2]
[393276691,1762420239851,-300.0,0.00016755,2]
[393276692,1762420239860,-195.0,0.00016755,2]
[393276693,1762420239869,-238.10507591,0.00016755,2]
[393276694,1762420239878,-300.0,0.00016755,2]
[393276695,1762420239889,-574.14159547,0.00016757,2]
[393276696,1762420239899,-500.0,0.00016757,2]
[393276697,1762420239910,-500.0,0.00016757,2]
[393276698,1762420239919,-2023.47,0.00016757,2]
[393276699,1762420239928,-2023.47,0.00016757,2]
[393276700,1762420239938,-500.0,0.00016757,2]
[393276701,1762420239947,-307.45218061,0.00016757,2]
[393276702,1762420239956,-152.54268606,0.00016757,2]
[393276703,1762420239965,-152.00625849,0.00016757,2]
[393276704,1762420239974,-150.0,0.00016757,2]
[393276705,1762420239984,-150.0,0.00016757,2]
[393276706,1762420239993,-150.0,0.00016757,2]
[393276707,1762420240002,-202.37031601,0.00016757,2]
[393276708,1762420240011,-150.0,0.00016757,2]
[393276709,1762420240021,-150.0,0.00016757,2]
[393276711,1762420240031,-552.8965822,0.00016757,2]
[393276712,1762420240040,-6593.43566099,0.00016773,2]
[393276713,1762420240051,-500.0,0.00016793,2]
[393276714,1762420240060,-500.0,0.00016793,2]
[393276715,1762420240069,-505.03214734,0.00016793,2]
[393276716,1762420240079,-150.0,0.00016793,2]
[393276717,1762420240088,-500.0,0.00016793,2]
[393276718,1762420240099,-300.0,0.00016793,2]
[393276719,1762420240108,-500.0,0.00016801,2]
[393276720,1762420240117,-574.0,0.00016801,2]
[393276721,1762420240127,-150.0,0.00016801,2]
[393276723,1762420240136,-500.0,0.00016801,2]
[393276724,1762420240145,-150.0,0.00016801,2]
[393276726,1762420240156,-500.0,0.00016801,2]
[393276727,1762420240165,-500.0,0.00016801,2]
[393276728,1762420240175,-500.0,0.00016801,2]
[393276729,1762420240185,-8922.51807909,0.00016833,2]
[393276730,1762420240195,-362.22099006,0.00016833,2]
[393276733,1762420240208,-16358.79452762,0.00016833,2]
[393276734,1762420240217,-681.67,0.00016838,2]
[393276735,1762420240226,-237.45497966,0.00016842,2]
[393276736,1762420240236,-150.0,0.00016894,2]
[393276737,1762420240245,-150.0,0.00016894,2]
[393276738,1762420240255,-150.0,0.00016894,2]
[393276739,1762420240264,-150.0,0.00016894,2]
[393276740,1762420240273,-200.0,0.000169,6]
[393276741,1762420240283,-219.65200309,0.00016921,2]
[393276742,1762420240292,-1000.0,0.00016921,2]
[393276744,1762420240301,-1000.0,0.00016921,2]
[393276746,1762420240310,-1000.0,0.00016921,2]
[393276748,1762420240319,-1000.0,0.00016921,2]
[393276749,1762420240328,-277.26642779,0.00016921,2]
[393276750,1762420240337,-1020.11501514,0.00016921,2]
[393276751,1762420240348,-406.97735465,0.00016921,2]
[393276752,1762420240357,-1000.0,0.00016921,2]
[393276753,1762420240366,-1000.0,0.00016921,2]
[393276754,1762420240376,-682.8775756,0.00016921,2]
[393276755,1762420240385,-1000.0,0.00016921,2]
[393276756,1762420240393,-1000.0,0.00016921,2]
[393276757,1762420240403,-1000.0,0.00016921,2]
[393276758,1762420240412,-516.7694007,0.00016921,2]
[393276759,1762420240421,-290.90535112,0.00016921,2]
[393276760,1762420240430,-1000.0,0.00016921,2]
[393276761,1762420240439,-1000.0,0.00016921,2]
[393276762,1762420240448,-1000.0,0.00016921,2]
[393276763,1762420240457,-1000.0,0.00016921,2]
[393276764,1762420240466,-1000.0,0.00016921,2]
[393276765,1762420240475,-500.0,0.0001693,2]
[393276766,1762420240484,-251.64103016,0.0001693,2]
[393276767,1762420240494,-150.0,0.0001693,2]
[393276768,1762420240503,-500.0,0.0001693,2]
[393276769,1762420240513,-300.0,0.0001693,2]
[393276770,1762420240522,-500.0,0.00016938,2]
[393276771,1762420240530,-574.0,0.00016938,2]
[393276772,1762420240540,-266.33548393,0.00016938,2]
[393276773,1762420240549,-500.0,0.00016938,2]
[393276774,1762420240558,-150.0,0.00016938,2]
[393276775,1762420240568,-328.38259742,0.00016938,2]
[393276776,1762420240578,-500.0,0.00016938,2]
[393276777,1762420240587,-500.0,0.00016938,2]
[393276778,1762420240598,-1680.0,0.00016958,2]
[393276779,1762420240607,-552.8965822,0.00016986,2]
[393276780,1762420240617,-2326.0,0.00016986,2]
[393276781,1762420240626,-2000.0,0.00017,2]
[393276782,1762420240635,-8922.51807909,0.00017011,2]
[393276783,1762420240644,-362.22099006,0.00017011,2]
[393276784,1762420240653,-16358.79452762,0.00017011,2]
[393276785,1762420240663,-150.0,0.00017031,2]
[393276786,1762420240672,-150.0,0.00017031,2]
[393276787,1762420240681,-150.0,0.00017031,2]
[393276788,1762420240691,-150.0,0.00017031,2]
[393276789,1762420240700,-500.0,0.00017067,2]
[393276790,1762420240711,-200.84185402,0.00017067,2]
[393276791,1762420240720,-500.0,0.00017067,2]
[393276792,1762420240730,-300.0,0.00017067,2]
[393276794,1762420240739,-1188.0,0.00017073,2]
[393276795,1762420240749,-905.0,0.00017073,2]
[393276796,1762420240758,-500.0,0.00017075,2]
[393276797,1762420240768,-574.0,0.00017075,2]
[393276798,1762420240778,-500.0,0.00017075,2]
[393276799,1762420240787,-161.37025384,0.00017075,2]
[393276800,1762420240796,-500.0,0.00017075,2]
[393276801,1762420240805,-500.0,0.00017075,2]
[393276802,1762420240815,-420.0,0.0001709,2]
[393276803,1762420240823,-420.0,0.0001709,2]
[393276804,1762420240833,-316.47,0.000171,2]
[393276805,1762420240849,-358.79,0.000171,2]
[393276806,1762420240858,-681.67,0.00017112,2]
[393276807,1762420240867,-698.56,0.00017123,2]
[393276808,1762420240876,-1396.4,0.00017123,2]
[393276809,1762420240886,-228.39525195,0.00017168,2]
[393276810,1762420240895,-150.0,0.00017168,2]
[393276811,1762420240905,-150.0,0.00017168,2]
[393276812,1762420240916,-150.0,0.00017168,2]
[393276813,1762420240925,-8922.51807909,0.00017189,2]
[393276814,1762420240935,-362.22099006,0.00017189,2]
[393276815,1762420240945,-16358.79452762,0.00017189,2]
[393276816,1762420240954,-248.59,0.00017193,2]
[393276817,1762420240963,-500.0,0.000172,6]
[393276818,1762420240972,-500.0,0.00017204,2]
[393276819,1762420240981,-450.0,0.00017204,2]
[393276820,1762420240991,-300.0,0.00017204,2]
[393276821,1762420241000,-6658.0,0.0001721,2]
[393276822,1762420241009,-559.0,0.0001721,2]
[393276823,1762420241018,-2141.0,0.0001721,2]
[393276824,1762420241028,-6475.0,0.0001721,2]
[393276825,1762420241038,-574.0,0.00017212,2]
[393276826,1762420241047,-500.0,0.00017212,2]
[393276827,1762420241056,-500.0,0.00017212,2]
[393276828,1762420241065,-500.0,0.00017212,2]
[393276829,1762420241074,-552.8965822,0.00017214,2]
[393276830,1762420241083,-1160.05063801,0.00017229,2]
[393276831,1762420241093,-1397.12,0.00017233,2]
[393276832,1762420241102,-697.5,0.00017233,2]
[393276833,1762420241111,-316.47,0.00017237,2]
[393276834,1762420241120,-358.8,0.00017237,2]
[393276835,1762420241129,-228.7642889,0.00017249,2]
[393276836,1762420241140,-687.09,0.00017249,2]
[393276837,1762420241149,-500.0,0.00017249,2]
[393276838,1762420241158,-847.3,0.00017249,2]
[393276839,1762420241167,-500.0,0.00017249,2]
[393276840,1762420241176,-522.56,0.00017249,2]
[393276841,1762420241185,-500.0,0.00017249,2]
[393276842,1762420241195,-76676.41,0.0001725,2]
[393276843,1762420241205,-220.0,0.00017265,2]
[393276844,1762420241217,-800.0,0.000173,6]
[393276845,1762420241226,-214.45499352,0.00017305,2]
[393276846,1762420241235,-150.0,0.00017305,2]
[393276847,1762420241246,-150.0,0.00017305,2]
[393276848,1762420241257,-307.01326633,0.0001732,2]
[393276849,1762420241266,-2023.47,0.0001732,2]
[393276850,1762420241275,-500.0,0.00017341,2]
[393276851,1762420241285,-150.0,0.00017341,2]
[393276852,1762420241296,-176.79,0.00017342,2]
[393276853,1762420241305,-166.66,0.00017344,2]
[393276854,1762420241315,-523.43595198,0.00017347,2]
[393276855,1762420241324,-574.0,0.00017349,2]
[393276856,1762420241334,-500.0,0.00017349,2]
[393276857,1762420241345,-500.0,0.00017349,2]
[393276858,1762420241354,-288.0,0.00017359,2]
[393276859,1762420241363,-221.33378528,0.00017363,2]
[393276860,1762420241372,-8922.51807909,0.00017367,2]
[393276861,1762420241382,-362.22099006,0.00017367,2]
[393276862,1762420241392,-16358.79452762,0.00017367,2]
[393276863,1762420241402,-316.47,0.00017374,2]
[393276864,1762420241411,-681.67,0.00017386,2]
[393276865,1762420241421,-1100.0,0.000174,6]
[393276866,1762420241430,-294.0,0.00017413,2]
[393276867,1762420241440,-200.54651287,0.00017442,2]
[393276868,1762420241450,-303.13116553,0.00017444,2]
[393276869,1762420241459,-176.91,0.00017452,2]
[393276870,1762420241469,-176.91,0.00017452,2]
[393276871,1762420241478,-176.91,0.00017452,2]
[393276872,1762420241487,-503.28118581,0.00017468,2]
[393276873,1762420241497,-500.0,0.00017468,2]
[393276874,1762420241506,-1500.0,0.00017468,2]
[393276875,1762420241515,-1500.0,0.00017468,2]
[393276876,1762420241524,-696.23949712,0.00017468,2]
[393276877,1762420241533,-1500.0,0.00017468,2]
[393276878,1762420241542,-1500.0,0.00017468,2]
[393276879,1762420241551,-500.70281537,0.00017468,2]
[393276880,1762420241559,-1500.0,0.00017468,2]
[393276881,1762420241569,-1500.0,0.00017468,2]
[393276882,1762420241578,-1500.0,0.00017468,2]
[393276883,1762420241587,-1503.46009537,0.00017468,2]
[393276884,1762420241597,-1500.0,0.00017468,2]
[393276885,1762420241606,-1500.0,0.00017468,2]
[393276886,1762420241615,-500.0,0.00017478,2]
[393276887,1762420241625,-574.0,0.00017486,2]
[393276888,1762420241634,-500.0,0.00017486,2]
[393276889,1762420241643,-500.0,0.00017486,2]
[393276890,1762420241653,-162.64913491,0.00017487,2]
[393276891,1762420241662,-4170.0,0.00017498,2]
[393276892,1762420241671,-1400.0,0.000175,6]
[393276893,1762420241680,-150.0,0.00017503,2]
[393276894,1762420241689,-150.0,0.00017503,2]
[393276895,1762420241699,-150.0,0.00017503,2]
[393276896,1762420241710,-150.0,0.00017503,2]
[393276897,1762420241719,-150.0,0.00017503,2]
[393276898,1762420241728,-150.0,0.00017503,2]
[393276899,1762420241737,-150.0,0.00017503,2]
[393276900,1762420241747,-150.0,0.00017503,2]
[393276901,1762420241757,-283.616,0.00017503,2]
[393276902,1762420241766,-150.0,0.00017503,2]
[393276903,1762420241775,-608.492,0.00017503,2]
[393276904,1762420241784,-3423.0,0.00017503,2]
[393276905,1762420241793,-1315.0,0.00017503,2]
[393276906,1762420241802,-574.0,0.00017503,2]
[393276907,1762420241811,-820.0,0.00017503,2]
[393276908,1762420241820,-1596.0,0.00017503,2]
[393276909,1762420241829,-1273.0,0.00017503,2]
[393276910,1762420241841,-849.381,0.00017503,2]
[393276911,1762420241852,-1169.62774866,0.00017505,7]
[393276912,1762420241861,-301.15,0.00017507,2]
[393276913,1762420241871,-5168.0,0.00017539,2]
[393276914,1762420241880,-8922.51807909,0.00017544,2]
[393276915,1762420241891,-362.22099006,0.00017544,2]
[393276916,1762420241900,-16358.79452762,0.00017544,2]
[393276917,1762420241910,-477.12,0.00017545,2]
[393276918,1762420241921,-207.91123044,0.00017556,2]
[393276919,1762420241931,-265.44,0.00017563,2]
[393276920,1762420241941,-477.87911524,0.00017569,2]
[393276921,1762420241950,-169.04,0.0001758,2]
[393276922,1762420241960,-169.01,0.0001758,2]
[393276923,1762420241970,-169.01,0.0001758,2]
[393276924,1762420241980,-169.01,0.0001758,2]
[393276925,1762420241989,-169.01,0.0001758,2]
[393276926,1762420241999,-169.01,0.0001758,2]
[393276927,1762420242009,-201.0,0.00017589,2]
[393276928,1762420242018,-200.0,0.000176,6]
[393276929,1762420242028,-574.0,0.00017623,2]
[393276930,1762420242037,-500.0,0.00017623,2]
[393276931,1762420242055,-500.0,0.00017623,2]
[393276932,1762420242066,-4170.0,0.00017648,2]
[393276933,1762420242076,-681.71608539,0.0001766,2]
[393276934,1762420242085,-303.13116551,0.00017672,2]
[393276935,1762420242097,-200.0,0.000177,6]
[393276936,1762420242106,-2786.0,0.00017722,2]
[393276937,1762420242116,-8922.51807909,0.00017722,2]
[393276938,1762420242126,-362.22099006,0.00017722,2]
[393276939,1762420242136,-16358.79452762,0.00017722,2]
[393276940,1762420242146,-574.0,0.0001776,2]
[393276941,1762420242156,-500.0,0.0001776,2]
[393276942,1762420242166,-500.0,0.0001776,2]
[393276943,1762420242175,-893.73840764,0.00017776,2]
[393276944,1762420242185,-2744.9989,0.00017791,2]
[393276945,1762420242194,-17925.914755,0.000178,2]
[393276946,1762420242204,-1856.0,0.000178,2]
[393276947,1762420242213,-293.68,0.000178,2]
[393276948,1762420242223,-200.0,0.000178,6]
[393276949,1762420242232,-508.69,0.00017811,2]
[393276950,1762420242242,-4170.0,0.00017815,2]
[393276951,1762420242251,-3195.714,0.00017821,2]
[393276952,1762420242260,-176.193,0.00017821,2]
[393276953,1762420242269,-522.56,0.00017829,2]
[393276954,1762420242279,-72981.61630475,0.0001783,2]
[393276955,1762420242287,-200.0,0.00017855,2]
[393276956,1762420242298,-2500.0,0.00017856,3]
[393276957,1762420242307,-500.0,0.00017856,2]
[393276958,1762420242316,-200.0,0.00017856,2]
[393276959,1762420242326,-2500.0,0.00017865,3]
[393276960,1762420242336,-2023.47,0.00017868,2]
[393276961,1762420242347,-2500.0,0.00017874,3]
[393276962,1762420242356,-2500.0,0.00017882,3]
[393276963,1762420242365,-2500.0,0.00017891,3]
[393276964,1762420242376,-574.0,0.00017897,2]
[393276965,1762420242385,-500.0,0.00017897,2]
[393276966,1762420242394,-500.0,0.00017897,2]
[393276967,1762420242404,-540.88402296,0.000179,3]
[393276968,1762420242413,-3476.35684536,0.000179,2]
[393276969,1762420242422,-2500.0,0.000179,3]
[393276970,1762420242432,-8922.51807909,0.000179,2]
[393276971,1762420242441,-200.0,0.000179,6]
[393276972,1762420242450,-362.22099006,0.000179,2]
[393276973,1762420242460,-2629.51395776,0.000179,2]
[393276974,1762420242469,-179.69179573,0.000179,2]
[393276975,1762420242478,-303.13116551,0.000179,2]
[393276976,1762420242487,-301.62511582,0.000179,3]
[393276977,1762420242497,-16358.79452762,0.000179,2]
[393276978,1762420242506,-988.17031461,0.000179,3]
[393276979,1762420242515,-329.0,0.00017973,2]
[393276980,1762420242524,-328.0,0.00017973,2]
[393276981,1762420242534,-500.0,0.00017973,2]
[393276982,1762420242543,-500.0,0.00017973,2]
[393276983,1762420242552,-500.0,0.00017973,2]
[393276984,1762420242562,-500.0,0.00017973,2]
[393276985,1762420242571,-516.45251666,0.00017973,2]
[393276986,1762420242580,-500.0,0.00017973,2]
[393276987,1762420242590,-183.4285495,0.00017973,2]
[393276988,1762420242603,-500.0,0.00017973,2]
[393276989,1762420242612,-500.0,0.00017973,2]
[393276990,1762420242623,-231.42602229,0.00017973,2]
[393276991,1762420242632,-500.0,0.00017973,2]
[393276992,1762420242641,-511.61246005,0.00017973,2]
[393276993,1762420242651,-500.0,0.00017973,2]
[393276994,1762420242660,-500.0,0.00017973,2]
[393276995,1762420242669,-500.0,0.00017973,2]
[393276996,1762420242679,-419.7902568,0.00017973,2]
[393276997,1762420242688,-506.28852507,0.00017973,2]
[393276998,1762420242698,-500.0,0.00017973,2]
[393276999,1762420242708,-501.40523433,0.00017973,2]
[393277000,1762420242718,-500.0,0.00017973,2]
[393277001,1762420242727,-500.0,0.00017973,2]
[393277002,1762420242737,-459.61733602,0.00017973,2]
[393277003,1762420242746,-500.0,0.00017973,2]
[393277004,1762420242756,-500.0,0.00017973,2]
[393277005,1762420242766,-500.0,0.00017973,2]
[393277006,1762420242775,-500.0,0.00017973,2]
[393277007,1762420242784,-500.0,0.00017973,2]
[393277008,1762420242793,-500.0,0.00017973,2]
[393277009,1762420242803,-500.0,0.00017973,2]
[393277010,1762420242813,-351.16553114,0.00017973,2]
[393277011,1762420242822,-500.0,0.00017973,2]
[393277012,1762420242831,-213.2608074,0.00017981,2]
[393277013,1762420242843,-540.74052707,0.00017989,2]
[393277014,1762420242852,-540.74052707,0.0001799,2]
[393277015,1762420242862,-540.74052707,0.0001799,2]
[393277016,1762420242871,-151.0,0.00017997,2]
[393277017,1762420242882,-687.09,0.00017998,2]
[393277018,1762420242891,-500.0,0.00017998,2]
[393277019,1762420242900,-847.3,0.00017998,2]
[393277020,1762420242909,-500.0,0.00017998,2]
[393277021,1762420242921,-500.0,0.00017998,2]
[393277022,1762420242931,-150.0,0.00017999,2]
[393277023,1762420242939,-2023.47,0.00017999,2]
[393277024,1762420242949,-2023.47,0.00017999,2]
[393277025,1762420242958,-2023.47,0.00017999,2]
[393277026,1762420242967,-2023.47,0.00017999,2]
[393277027,1762420242976,-2023.47,0.00017999,2]
[393277028,1762420242986,-2023.47,0.00017999,2]
[393277029,1762420242999,-2023.47,0.00017999,2]
[393277030,1762420243009,-2023.47,0.00017999,2]
[393277031,1762420243018,-2023.47,0.00017999,2]
[393277032,1762420243027,-2023.47,0.00017999,2]
[393277033,1762420243037,-2023.47,0.00017999,2]
[393277034,1762420243047,-2023.47,0.00017999,2]
[393277036,1762420243056,-2023.47,0.00017999,2]
[393277037,1762420243065,-2023.47,0.00017999,2]
[393277039,1762420243074,-2023.47,0.00017999,2]
[393277040,1762420243084,-2023.47,0.00017999,2]
[393277041,1762420243094,-2023.47,0.00017999,2]
[393277042,1762420243104,-2023.47,0.00017999,2]
[393277043,1762420243113,-2023.48575794,0.00017999,2]
[393277044,1762420243123,-1000.0,0.00017999,2]
[393277045,1762420243132,-687.09,0.00017999,2]
[393277046,1762420243142,-687.09,0.00017999,2]
[393277047,1762420243151,-687.09,0.00017999,2]
[393277048,1762420243161,-687.09,0.00017999,2]
[393277049,1762420243171,-687.09,0.00017999,2]
[393277050,1762420243182,-687.09,0.00017999,2]
[393277051,1762420243192,-687.09,0.00017999,2]
[393277052,1762420243202,-687.09,0.00017999,2]
[393277053,1762420243212,-687.09,0.00017999,2]
[393277054,1762420243222,-687.09,0.00017999,2]
[393277055,1762420243232,-687.09,0.00017999,2]
[393277056,1762420243242,-687.09,0.00017999,2]
[393277057,1762420243252,-687.09,0.00017999,2]
[393277061,1762420243478,-687.09,0.00017999,2]
[393277062,1762420243488,-687.09,0.00017999,2]
[393277063,1762420243498,-687.09,0.00017999,2]
[393277064,1762420243507,-687.09,0.00017999,2]
[393277065,1762420243516,-687.09,0.00017999,2]
[393277066,1762420243525,-687.09,0.00017999,2]
[393277067,1762420243535,-687.09,0.00017999,2]
[393277068,1762420243544,-687.19879056,0.00017999,2]
[393277069,1762420243553,-517.47400377,0.00017999,2]
[393277070,1762420243562,-847.3,0.00017999,2]
[393277071,1762420243571,-847.3,0.00017999,2]
[393277072,1762420243581,-847.3,0.00017999,2]
[393277073,1762420243590,-847.3,0.00017999,2]
[393277074,1762420243601,-847.3,0.00017999,2]
[393277075,1762420243611,-847.3,0.00017999,2]
[393277076,1762420243620,-847.3,0.00017999,2]
[393277077,1762420243631,-847.3,0.00017999,2]
[393277078,1762420243640,-847.3,0.00017999,2]
[393277079,1762420243650,-847.3,0.00017999,2]
[393277080,1762420243659,-847.3,0.00017999,2]
[393277081,1762420243669,-847.3,0.00017999,2]